[Event "Fast Chess"]
[Site "ChessKid.com"]
[Date "2020.03.22"]
[Round "1"]
[White "Gross, Lukas"]
[Black "Rosenkranz, Benjamin"]
[Result "0-1"]
[ECO "A00"]
[WhiteElo "682"]
[BlackElo "1104"]
[PlyCount "72"]
[EventDate "2020.??.??"]
[TimeControl "600"]
[WhiteClock "0:04:20"]
[BlackClock "0:05:29"]

1. g3 {[%emt 0:00:04]} e5 {[%emt 0:00:52]} 2. Bg2 {[%emt 0:00:07]} Nc6 {
[%emt 0:00:06]} 3. Nh3 {[%emt 0:00:08]} Nf6 {[%emt 0:00:07]} 4. O-O {[%emt 0:
00:07]} Bd6 {[%emt 0:00:11]} 5. Nc3 {[%emt 0:00:11]} O-O {[%emt 0:00:16]} 6.
Nb1 $2 {[%emt 0:00:04]} Bc5 {[%emt 0:00:11]} 7. e3 {[%emt 0:00:10]} d6 {
[%emt 0:00:08]} 8. f4 {[%emt 0:00:19]} exf4 {[%emt 0:00:08]} 9. gxf4 {[%emt 0:
00:04]} Bd7 {[%emt 0:00:07]} 10. d4 {[%emt 0:00:15]} Bb6 {[%emt 0:00:05]} 11.
c4 {[%emt 0:00:04]} Qc8 {[%emt 0:00:07]} 12. c5 {[%emt 0:00:02]} dxc5 {[%emt 0:
00:03]} 13. dxc5 {[%emt 0:00:04]} Bxc5 {[%emt 0:00:02]} 14. a3 $4 {[%emt 0:00:
09]} Bxh3 {[%emt 0:00:04]} 15. Bxh3 {[%emt 0:00:03]} Qxh3 {[%emt 0:00:07]} 16.
Qf3 {[%emt 0:00:08]} Qxf3 {[%emt 0:00:12]} 17. Rxf3 {[%emt 0:00:09]} Rad8 {
[%emt 0:00:11]} 18. Kh1 {[%emt 0:00:09]} Rd1+ {[%emt 0:00:14]} 19. Kg2 {
[%emt 0:00:04]} Rxc1 {[%emt 0:00:05]} 20. Rf1 {[%emt 0:00:04]} Rc2+ {[%emt 0:
00:05]} 21. Kg1 {[%emt 0:00:10]} Bxe3+ {[%emt 0:00:04]} 22. Kh1 {[%emt 0:00:04]
} Rxb2 {[%emt 0:00:08]} 23. Rf3 {[%emt 0:00:06]} Bc5 {[%emt 0:00:12]} 24. Nc3 {
[%emt 0:00:10]} Bxa3 $2 {[%emt 0:00:11]} 25. Rxa3 {[%emt 0:00:07]} Nd4 {
[%emt 0:00:12]} 26. Rd3 {[%emt 0:00:11]} Ne2 {[%emt 0:00:12]} 27. Nd1 {[%emt 0:
00:05]} Rb1 {[%emt 0:00:10]} 28. Kg2 {[%emt 0:00:10]} Nxf4+ {[%emt 0:00:06]}
29. Kh1 {[%emt 0:00:03]} Nxd3 {[%emt 0:00:05]} 30. Rxd3 {[%emt 0:00:07]} Ne4 {
[%emt 0:00:07]} 31. Kg2 {[%emt 0:00:06]} g6 {[%emt 0:00:20]} 32. Nc3 {[%emt 0:
00:09]} Nxc3 {[%emt 0:00:04]} 33. Rxc3 {[%emt 0:00:03]} Re8 {[%emt 0:00:10]}
34. Rxc7 {[%emt 0:00:05]} Re3 {[%emt 0:00:04]} 35. Rd7 {[%emt 0:00:25]} Rb2+ {
[%emt 0:00:10]} 36. Kg1 {[%emt 0:00:05]} Re1# {[%emt 0:00:04] FineBeamingStage
won by checkmate} 0-1

[Event "Fast Chess"]
[Site "ChessKid.com"]
[Date "2020.03.22"]
[Round "1"]
[White "Zerza, Michael"]
[Black "Zerza, Paul"]
[Result "0-1"]
[ECO "D00"]
[WhiteElo "886"]
[BlackElo "744"]
[PlyCount "38"]
[EventDate "2020.??.??"]
[TimeControl "600"]
[WhiteClock "0:07:51"]
[BlackClock "0:07:21"]

1. d4 {[%emt 0:00:07]} d5 {[%emt 0:00:05]} 2. Bg5 {[%emt 0:00:05]} f6 {[%emt 0:
00:06]} 3. Bf4 {[%emt 0:00:05]} e6 {[%emt 0:00:02]} 4. e3 {[%emt 0:00:19]} Bb4+
{[%emt 0:00:06]} 5. c3 {[%emt 0:00:07]} Bd6 {[%emt 0:00:05]} 6. Bb5+ {[%emt 0:
00:04]} Kf7 {[%emt 0:00:05]} 7. Bxd6 {[%emt 0:00:13]} cxd6 {[%emt 0:00:03]} 8.
f4 {[%emt 0:00:10]} e5 {[%emt 0:00:02]} 9. dxe5 {[%emt 0:00:11]} dxe5 {[%emt 0:
00:04]} 10. fxe5 {[%emt 0:00:06]} a6 {[%emt 0:00:02]} 11. Bd3 {[%emt 0:00:09]}
Ke8 {[%emt 0:00:03]} 12. exf6 {[%emt 0:00:07]} Qxf6 {[%emt 0:00:05]} 13. c4 {
[%emt 0:00:06]} dxc4 {[%emt 0:00:02]} 14. Bxc4 {[%emt 0:00:13]} Qxb2 {[%emt 0:
00:08]} 15. Nd2 {[%emt 0:00:15]} b5 {[%emt 0:00:13]} 16. Bb3 {[%emt 0:00:06]}
a5 {[%emt 0:00:13]} 17. Rb1 {[%emt 0:00:03]} Qf6 {[%emt 0:00:11]} 18. Ne4 {
[%emt 0:00:08]} Qf4 {[%emt 0:00:10]} 19. exf4 {[%emt 0:00:06]} Nf6 {[%emt 0:00:
24] MeekRoseOyster won - game abandoned} 0-1

[Event "Fast Chess"]
[Site "ChessKid.com"]
[Date "2020.03.22"]
[Round "2"]
[White "Zerza, Paul"]
[Black "Burgsteiner, Konstantin"]
[Result "0-1"]
[ECO "C00"]
[WhiteElo "728"]
[BlackElo "1172"]
[PlyCount "62"]
[EventDate "2020.??.??"]
[TimeControl "600"]
[WhiteClock "0:04:29"]
[BlackClock "0:06:31"]

1. e4 {[%emt 0:00:00]} e6 {[%emt 0:00:02]} 2. Bb5 {[%emt 0:00:03]} Bc5 {
[%emt 0:00:03]} 3. d3 {[%emt 0:00:13]} Qf6 {[%emt 0:00:06]} 4. Nf3 {[%emt 0:00:
07]} c6 {[%emt 0:00:05]} 5. O-O {[%emt 0:00:02]} cxb5 {[%emt 0:00:07]} 6. Nc3 {
[%emt 0:00:03]} b4 {[%emt 0:00:03]} 7. Nb5 {[%emt 0:00:04]} Nc6 {[%emt 0:00:07]
} 8. Nh4 {[%emt 0:00:13]} Qxh4 {[%emt 0:00:13]} 9. Be3 {[%emt 0:00:20]} d6 {
[%emt 0:00:17]} 10. Bxc5 {[%emt 0:00:09]} dxc5 {[%emt 0:00:04]} 11. Nd6+ {
[%emt 0:00:05]} Kd7 {[%emt 0:00:11]} 12. Nxf7 {[%emt 0:00:03]} Nh6 {[%emt 0:00:
32]} 13. Nxh8 {[%emt 0:00:07]} Kd8 {[%emt 0:00:09]} 14. g3 {[%emt 0:00:08]} Qh3
{[%emt 0:00:08]} 15. Ng6 {[%emt 0:00:12]} Bd7 {[%emt 0:00:34]} 16. Nf8 {
[%emt 0:00:05]} Kc7 {[%emt 0:00:05]} 17. Nxd7 {[%emt 0:00:03]} Kxd7 {[%emt 0:
00:10]} 18. f4 {[%emt 0:00:05]} Rf8 {[%emt 0:00:11]} 19. e5 {[%emt 0:00:04]}
Nd4 {[%emt 0:00:31]} 20. c3 {[%emt 0:00:06]} Ndf5 {[%emt 0:00:06]} 21. cxb4 {
[%emt 0:00:02]} cxb4 {[%emt 0:00:20]} 22. a3 {[%emt 0:00:07]} Ne3 {[%emt 0:00:
04]} 23. Qd2 {[%emt 0:00:05]} Nxf1 {[%emt 0:00:07]} 24. Rxf1 {[%emt 0:00:11]}
Ng4 {[%emt 0:00:12]} 25. axb4 {[%emt 0:00:07]} b6 {[%emt 0:00:19]} 26. Qe2 {
[%emt 0:00:15]} a5 {[%emt 0:00:11]} 27. bxa5 {[%emt 0:00:05]} bxa5 {[%emt 0:00:
06]} 28. b4 {[%emt 0:00:07]} axb4 {[%emt 0:00:03]} 29. d4 {[%emt 0:00:07]} b3 {
[%emt 0:00:05]} 30. Qb2 {[%emt 0:00:08]} Rf5 {[%emt 0:00:19]} 31. Qxb3 {
[%emt 0:00:03]} Qxh2# {[%emt 0:00:03] MintTerrificRanch won by checkmate} 0-1

[Event "Fast Chess"]
[Site "ChessKid.com"]
[Date "2020.03.22"]
[Round "3"]
[White "Burgsteiner, Konstantin"]
[Black "Rosenkranz, Benjamin"]
[Result "0-1"]
[ECO "A00"]
[WhiteElo "1128"]
[BlackElo "1128"]
[Annotator "Eröffnungsfehler, Verwertung von Vorteilen"]
[PlyCount "82"]
[EventDate "2020.??.??"]
[TimeControl "600"]
[WhiteClock "0:01:45"]
[BlackClock "0:04:23"]

1. e3 {[%emt 0:00:00]} e5 {[%emt 0:00:18]} 2. Qf3 {[%emt 0:00:05]} Nf6 {
[%emt 0:00:07]} 3. g3 {[%emt 0:00:11]} Bd6 {[%emt 0:00:13]} 4. Bh3 {[%emt 0:00:
05]} O-O {[%emt 0:00:07]} 5. Ne2 {[%emt 0:00:03]} Nc6 {[%emt 0:00:06]} 6. O-O {
[%emt 0:00:04]} Bc5 {[%emt 0:00:16]} 7. Na3 {[%emt 0:00:05]} d6 {[%emt 0:00:06]
} 8. c3 {[%emt 0:00:07]} Bxh3 {[%emt 0:00:05]} 9. Re1 {[%emt 0:00:09]} Bxa3 {
[%emt 0:00:07]} 10. bxa3 {[%emt 0:00:03]} Bg4 {[%emt 0:00:08]} 11. Qg2 {
[%emt 0:00:10]} Qc8 {[%emt 0:00:15]} 12. a4 {[%emt 0:00:14]} Bf5 {[%emt 0:00:
06]} 13. Ba3 {[%emt 0:00:05]} Be4 {[%emt 0:00:09]} 14. f3 {[%emt 0:00:06]} Bd5
{[%emt 0:00:08]} 15. e4 {[%emt 0:00:08]} Be6 {[%emt 0:00:16]} 16. Rab1 {
[%emt 0:00:17]} Bh3 {[%emt 0:00:07]} 17. Qf2 {[%emt 0:00:09]} Be6 {[%emt 0:00:
14]} 18. Ra1 {[%emt 0:00:07]} Nh5 {[%emt 0:00:17]} 19. f4 {[%emt 0:00:07]} exf4
{[%emt 0:00:06]} 20. gxf4 {[%emt 0:00:05]} Bh3 {[%emt 0:00:11]} 21. e5 {
[%emt 0:00:09]} dxe5 {[%emt 0:00:02]} 22. Bxf8 {[%emt 0:00:04]} Qxf8 {[%emt 0:
00:06]} 23. fxe5 {[%emt 0:00:04]} Nxe5 $4 {[%emt 0:00:15]} 24. Qe3 $1 {[%emt 0:
00:18]} c6 {[%emt 0:01:21]} 25. Qxh3 {[%emt 0:00:07]} g6 {[%emt 0:00:32]} 26.
Rf1 {[%emt 0:00:10]} Re8 {[%emt 0:00:23]} 27. Qd7 $4 {[%emt 0:00:12]} Nxd7 {
[%emt 0:00:05]} 28. Nd4 {[%emt 0:00:11]} Qc5 {[%emt 0:00:17]} 29. Rab1 {
[%emt 0:00:13]} Qg5+ {[%emt 0:00:21]} 30. Kf2 {[%emt 0:00:10]} Qxd2+ {[%emt 0:
00:06]} 31. Kf3 {[%emt 0:00:10]} Qb2 {[%emt 0:00:03]} 32. Rxb2 {[%emt 0:00:05]}
c5 {[%emt 0:00:15]} 33. Nc2 {[%emt 0:00:09]} b6 {[%emt 0:00:04]} 34. Rd1 {
[%emt 0:00:05]} Ne5+ {[%emt 0:00:05]} 35. Ke4 {[%emt 0:00:03]} Ng4+ {[%emt 0:
00:03]} 36. Kf3 {[%emt 0:00:14]} Nxh2+ {[%emt 0:00:04]} 37. Kg2 {[%emt 0:00:05]
} Re2+ {[%emt 0:00:04]} 38. Kh3 {[%emt 0:00:05]} Nf4+ {[%emt 0:00:07]} 39. Kg3
{[%emt 0:00:06]} g5 {[%emt 0:00:21]} 40. Rd8+ {[%emt 0:00:04]} Kg7 {[%emt 0:00:
04]} 41. a5 {[%emt 0:00:34]} Rg2# {[%emt 0:00:17] FineBeamingStage won by
checkmate} 0-1

[Event "Fast Chess"]
[Site "ChessKid.com"]
[Date "2020.03.22"]
[Round "3"]
[White "Varahram, Kian"]
[Black "Zerza, Michael"]
[Result "0-1"]
[ECO "B11"]
[WhiteElo "754"]
[BlackElo "901"]
[PlyCount "100"]
[EventDate "2020.??.??"]
[TimeControl "600"]
[WhiteClock "0:00:21"]
[BlackClock "0:00:17"]

1. e4 {[%emt 0:00:00]} c6 {[%emt 0:01:43]} 2. Qf3 {[%emt 0:00:15]} e6 {[%emt 0:
00:06]} 3. Nc3 {[%emt 0:00:10]} d5 {[%emt 0:00:19]} 4. exd5 {[%emt 0:00:04]}
cxd5 {[%emt 0:00:17]} 5. Bb5+ {[%emt 0:00:14]} Bd7 {[%emt 0:00:08]} 6. a4 {
[%emt 0:00:19]} a6 {[%emt 0:00:07]} 7. Bd3 {[%emt 0:00:15]} Bd6 {[%emt 0:00:15]
} 8. b4 {[%emt 0:00:37]} Ne7 {[%emt 0:00:13]} 9. b5 {[%emt 0:00:09]} axb5 {
[%emt 0:00:11]} 10. Nxb5 {[%emt 0:00:18]} Bxb5 {[%emt 0:00:10]} 11. Bxb5+ {
[%emt 0:00:04]} Nbc6 {[%emt 0:00:03]} 12. Nh3 {[%emt 0:00:13]} O-O {[%emt 0:00:
02]} 13. O-O {[%emt 0:00:05]} Nd4 {[%emt 0:00:07]} 14. Qc3 {[%emt 0:00:15]}
Nxb5 {[%emt 0:00:13]} 15. Qb3 {[%emt 0:00:24]} Nd4 {[%emt 0:00:34]} 16. Qxb7 {
[%emt 0:00:10]} Nxc2 {[%emt 0:00:24]} 17. Ra2 {[%emt 0:00:12]} Nd4 {[%emt 0:00:
20]} 18. Bb2 {[%emt 0:00:13]} Ndf5 {[%emt 0:00:19]} 19. Ng5 {[%emt 0:00:38]} f6
{[%emt 0:00:35]} 20. Nf3 {[%emt 0:00:10]} Qb8 {[%emt 0:00:41]} 21. Qb5 {
[%emt 0:00:33]} Qxb5 {[%emt 0:00:14]} 22. axb5 {[%emt 0:00:04]} Rxa2 {[%emt 0:
00:02]} 23. Bc1 {[%emt 0:00:10]} Rb8 {[%emt 0:00:25]} 24. d4 {[%emt 0:00:12]}
Rxb5 {[%emt 0:00:16]} 25. g4 {[%emt 0:00:25]} Nh6 {[%emt 0:00:13]} 26. Nh4 {
[%emt 0:00:15]} Nf7 {[%emt 0:00:11]} 27. f3 {[%emt 0:00:23]} Bxh2+ {[%emt 0:00:
19]} 28. Kh1 {[%emt 0:00:09]} Bg3 {[%emt 0:00:03]} 29. Rg1 {[%emt 0:00:29]}
Bxh4 {[%emt 0:00:04]} 30. Rg2 {[%emt 0:00:22]} Rxg2 {[%emt 0:00:04]} 31. Kxg2 {
[%emt 0:00:03]} Rb1 {[%emt 0:00:01]} 32. Bf4 {[%emt 0:00:08]} g5 {[%emt 0:00:
04]} 33. Bd6 {[%emt 0:00:08]} Nc8 {[%emt 0:00:03]} 34. Bc5 {[%emt 0:00:09]} Nd8
{[%emt 0:00:09]} 35. Kh3 {[%emt 0:00:19]} Nb7 {[%emt 0:00:02]} 36. Ba3 {
[%emt 0:00:18]} Rd1 {[%emt 0:00:05]} 37. Bb4 {[%emt 0:00:18]} Nb6 {[%emt 0:00:
05]} 38. Ba3 {[%emt 0:00:03]} Nc4 {[%emt 0:00:02]} 39. Bb2 {[%emt 0:00:03]}
Nxb2 {[%emt 0:00:03]} 40. f4 {[%emt 0:00:05]} Rxd4 {[%emt 0:00:05]} 41. f5 {
[%emt 0:00:02]} exf5 {[%emt 0:00:02]} 42. gxf5 {[%emt 0:00:01]} Nc5 {[%emt 0:
00:04]} 43. Kh2 {[%emt 0:00:03]} Ncd3 {[%emt 0:00:02]} 44. Kh1 {[%emt 0:00:02]}
Nc4 {[%emt 0:00:01]} 45. Kh2 {[%emt 0:00:02]} Ne3 {[%emt 0:00:02]} 46. Kh1 {
[%emt 0:00:01]} Nf4 {[%emt 0:00:02]} 47. Kh2 {[%emt 0:00:07]} Ng4+ {[%emt 0:00:
01]} 48. Kh1 {[%emt 0:00:01]} Rd2 {[%emt 0:00:03]} 49. Kg1 {[%emt 0:00:02]}
Bf2+ {[%emt 0:00:03]} 50. Kf1 {[%emt 0:00:02]} Ne3# {[%emt 0:00:03]
OpenWorkingLeopard won by checkmate} 0-1

[Event "Fast Chess"]
[Site "ChessKid.com"]
[Date "2020.03.22"]
[Round "3"]
[White "Gross, Lukas"]
[Black "Zerza, Julia"]
[Result "1-0"]
[ECO "A00"]
[WhiteElo "713"]
[BlackElo "748"]
[PlyCount "95"]
[EventDate "2020.??.??"]
[TimeControl "600"]
[BlackClock "0:03:06"]

1. g3 {[%emt 0:00:00]} d5 {[%emt 0:00:13]} 2. f3 {[%emt 0:00:06]} c6 {[%emt 0:
00:09]} 3. e4 {[%emt 0:00:02]} Qd6 {[%emt 0:00:16]} 4. Be2 {[%emt 0:00:08]} e6
{[%emt 0:00:13]} 5. exd5 {[%emt 0:00:03]} Qxd5 {[%emt 0:00:08]} 6. b3 {[%emt 0:
00:08]} Bd7 {[%emt 0:00:04]} 7. Bc4 {[%emt 0:00:03]} Qd6 {[%emt 0:00:04]} 8.
Ne2 {[%emt 0:00:05]} Na6 {[%emt 0:00:09]} 9. O-O {[%emt 0:00:05]} Nb4 {[%emt 0:
00:08]} 10. c3 {[%emt 0:00:06]} Nd5 {[%emt 0:00:06]} 11. d4 {[%emt 0:00:15]} e5
{[%emt 0:00:11]} 12. dxe5 {[%emt 0:00:08]} Qxe5 {[%emt 0:00:05]} 13. Bf4 {
[%emt 0:00:03]} Qe6 {[%emt 0:00:10]} 14. Nd4 {[%emt 0:00:07]} Qh3 {[%emt 0:00:
11]} 15. Kh1 {[%emt 0:00:08]} Nxf4 {[%emt 0:00:14]} 16. gxf4 {[%emt 0:00:02]}
Be6 {[%emt 0:00:10]} 17. Bxe6 {[%emt 0:00:13]} fxe6 {[%emt 0:00:05]} 18. Nxe6 {
[%emt 0:00:04]} Qxe6 {[%emt 0:00:04]} 19. Qe1 {[%emt 0:00:06]} Rd8 {[%emt 0:00:
23]} 20. Qxe6+ {[%emt 0:00:05]} Be7 {[%emt 0:00:04]} 21. Qe5 {[%emt 0:00:21]}
Nf6 {[%emt 0:00:10]} 22. Na3 {[%emt 0:00:13]} Rf8 {[%emt 0:00:19]} 23. Rfd1 {
[%emt 0:00:06]} g6 {[%emt 0:00:18]} 24. h4 {[%emt 0:00:23]} Kf7 {[%emt 0:00:21]
} 25. Nc4 {[%emt 0:00:15]} Rxd1+ {[%emt 0:00:06]} 26. Rxd1 {[%emt 0:00:09]} Nd5
{[%emt 0:00:09]} 27. f5 {[%emt 0:00:17]} Bxh4 {[%emt 0:00:29]} 28. Qd6 {
[%emt 0:00:35]} Be7 {[%emt 0:00:31]} 29. Qe5 {[%emt 0:00:05]} Bf6 {[%emt 0:00:
17]} 30. Qe1 {[%emt 0:00:11]} Bxc3 {[%emt 0:00:29]} 31. Qg1 {[%emt 0:00:09]}
gxf5 {[%emt 0:00:39]} 32. Kh2 {[%emt 0:00:12]} Re8 {[%emt 0:00:18]} 33. Kh1 {
[%emt 0:00:15]} b5 {[%emt 0:00:20]} 34. Na3 {[%emt 0:00:07]} b4 {[%emt 0:00:26]
} 35. Nb1 {[%emt 0:00:07]} a5 {[%emt 0:00:07]} 36. Qh2 {[%emt 0:00:17]} Rh8 {
[%emt 0:00:08]} 37. Qg1 {[%emt 0:00:06]} h5 {[%emt 0:00:16]} 38. Qa7+ {[%emt 0:
00:12]} Ne7 {[%emt 0:00:06]} 39. Qxa5 {[%emt 0:00:05]} h4 {[%emt 0:00:08]} 40.
f4 {[%emt 0:00:06]} Nd5 {[%emt 0:00:16]} 41. Qb5 {[%emt 0:00:11]} Nxf4 {
[%emt 0:00:03]} 42. Qxc6 {[%emt 0:00:08]} Ne6 {[%emt 0:00:15]} 43. Nxc3 {
[%emt 0:00:07]} bxc3 {[%emt 0:00:02]} 44. Qxc3 {[%emt 0:00:03]} Rd8 {[%emt 0:
00:13]} 45. Rxd8 {[%emt 0:00:05]} Nxd8 {[%emt 0:00:09]} 46. Qc7+ {[%emt 0:00:
04]} Ke8 {[%emt 0:00:03]} 47. Qe5+ {[%emt 0:00:05]} Kf8 {[%emt 0:00:15]} 48.
Qf6+ {[%emt 0:00:04] RosyPopularArm won on time} 1-0

[Event "Fast Chess"]
[Site "ChessKid.com"]
[Date "2020.03.23"]
[Round "1"]
[White "Zerza, Julia"]
[Black "Horky, Florian"]
[Result "1-0"]
[ECO "A40"]
[WhiteElo "811"]
[BlackElo "890"]
[Annotator "Eröffnung, Mattdrohungen"]
[PlyCount "41"]
[EventDate "2020.??.??"]
[TimeControl "600"]
[WhiteClock "0:07:29"]
[BlackClock "0:06:12"]

1. d4 {[%emt 0:00:14]} e6 {[%emt 0:00:08]} 2. Nf3 {[%emt 0:00:03]} Qf6 $2 {
[%emt 0:00:05]} 3. Bg5 {[%emt 0:00:04]} Qg6 {[%emt 0:00:09]} 4. e3 {[%emt 0:00:
00]} Be7 {[%emt 0:00:03]} 5. Bxe7 {[%emt 0:00:06]} Nxe7 {[%emt 0:00:04]} 6. Ne5
{[%emt 0:00:05] besser Ld3! Das bringt eine neue Figur ins Spiel und greift
auch die Dame an.} Qe4 {[%emt 0:00:13]} 7. Qd3 {[%emt 0:00:30]} Qd5 {[%emt 0:
00:13]} 8. e4 {[%emt 0:00:12]} Qa5+ {[%emt 0:00:12]} 9. Qd2 {[%emt 0:00:16]}
Qa4 $2 {[%emt 0:00:14] Die Dame zieht ständig und keine neue Figur kommt ins
Spiel. Daher war ...Sbc6 vorzuziehen: Die Dame ist gedeckt und eine neue Figur
ist im Spiel.} 10. Nc3 {[%emt 0:00:18]} Qa5 {[%emt 0:00:18]} 11. Bd3 {[%emt 0:
00:25]} Ng6 {[%emt 0:00:04]} 12. Nxg6 {[%emt 0:00:04]} fxg6 $2 {[%emt 0:00:05]
Offenbar hat Schwarz gar nicht die Absicht zu rochieren. Daher war ...hxg6
vorzuziehen: Das öffnet dem Turm auf h8 gleich eine Linie. Evtl kann Schwarz
ja später noch groß rochieren.} 13. O-O {[%emt 0:00:02]} O-O {[%emt 0:00:04]}
14. e5 {[%emt 0:00:09]} Nc6 {[%emt 0:00:05]} 15. h4 {[%emt 0:00:10]} Nxd4 {
[%emt 0:00:04]} 16. h5 {[%emt 0:00:16]} gxh5 {[%emt 0:00:07]} 17. Qg5 {[%emt 0:
00:09]} b5 {[%emt 0:00:09]} 18. Qxh5 {[%emt 0:00:09]} c5 {[%emt 0:00:05]} 19.
Bxh7+ {[%emt 0:00:28]} Kh8 {[%emt 0:00:06]} 20. Bg6+ {[%emt 0:00:06]} Kg8 {
[%emt 0:00:04]} 21. Qh7# {[%emt 0:00:02] OpalLoudDish won by checkmate} 1-0

[Event "Fast Chess"]
[Site "ChessKid.com"]
[Date "2020.03.23"]
[Round "1"]
[White "Zerza, Michael"]
[Black "Zerza, Paul"]
[Result "1/2-1/2"]
[ECO "D00"]
[WhiteElo "882"]
[BlackElo "720"]
[PlyCount "94"]
[EventDate "2020.??.??"]
[TimeControl "600"]
[WhiteClock "0:05:34"]
[BlackClock "0:04:23"]

1. d4 {[%emt 0:00:02]} d5 {[%emt 0:00:02]} 2. Bg5 {[%emt 0:00:06]} Bg4 {
[%emt 0:00:06]} 3. f3 {[%emt 0:00:05]} Nf6 {[%emt 0:00:05]} 4. fxg4 {[%emt 0:
00:11]} e6 {[%emt 0:00:09]} 5. Bxf6 {[%emt 0:00:05]} gxf6 {[%emt 0:00:03]} 6.
e3 {[%emt 0:00:06]} Bb4+ {[%emt 0:00:06]} 7. c3 {[%emt 0:00:07]} Bd6 {[%emt 0:
00:04]} 8. b3 {[%emt 0:00:10]} Ba3 {[%emt 0:00:08]} 9. c4 {[%emt 0:00:11]} dxc4
{[%emt 0:00:05]} 10. bxc4 {[%emt 0:00:04]} Bb2 {[%emt 0:00:02]} 11. Nc3 {
[%emt 0:00:18]} Bxa1 {[%emt 0:00:03]} 12. Qxa1 {[%emt 0:00:05]} Nc6 {[%emt 0:
00:03]} 13. d5 {[%emt 0:00:09]} Nb4 {[%emt 0:00:06]} 14. dxe6 {[%emt 0:00:10]}
fxe6 {[%emt 0:00:02]} 15. c5 {[%emt 0:00:03]} b6 {[%emt 0:00:03]} 16. c6 {
[%emt 0:00:03]} Qd6 {[%emt 0:00:06]} 17. Nb5 {[%emt 0:00:11]} Qxc6 {[%emt 0:00:
05]} 18. Nd4 {[%emt 0:00:05]} Qd6 {[%emt 0:00:10]} 19. Nb5 {[%emt 0:00:06]} Qc6
{[%emt 0:00:06]} 20. Nd4 {[%emt 0:00:05]} Qc2 {[%emt 0:00:14]} 21. Nxc2 {
[%emt 0:00:06]} Nxc2+ {[%emt 0:00:03]} 22. Kd1 {[%emt 0:00:21]} Nxa1 {[%emt 0:
00:04]} 23. Kc1 {[%emt 0:00:05]} Nc2 {[%emt 0:00:04]} 24. Kxc2 {[%emt 0:00:05]}
c5 {[%emt 0:00:09]} 25. h3 {[%emt 0:00:01]} a5 {[%emt 0:00:04]} 26. g3 {
[%emt 0:00:03]} b5 {[%emt 0:00:01]} 27. h4 {[%emt 0:00:03]} b4 {[%emt 0:00:02]}
28. g5 {[%emt 0:00:03]} c4 {[%emt 0:00:02]} 29. Bxc4 {[%emt 0:00:09]} Ke7 {
[%emt 0:00:06]} 30. gxf6+ {[%emt 0:00:07]} Kxf6 {[%emt 0:00:04]} 31. g4 {
[%emt 0:00:04]} Ke5 {[%emt 0:00:07]} 32. h5 {[%emt 0:00:13]} Ke4 {[%emt 0:00:
05]} 33. Kd2 {[%emt 0:00:07]} a4 {[%emt 0:00:06]} 34. g5 {[%emt 0:00:12]} b3 {
[%emt 0:00:10]} 35. axb3 {[%emt 0:00:09]} axb3 {[%emt 0:00:02]} 36. Bxb3 {
[%emt 0:00:04]} Rae8 {[%emt 0:00:05]} 37. g6 {[%emt 0:00:02]} hxg6 {[%emt 0:00:
05]} 38. hxg6 {[%emt 0:00:06]} Rxh1 {[%emt 0:00:04]} 39. Ne2 {[%emt 0:00:09]}
Rhh8 {[%emt 0:00:05]} 40. g7 {[%emt 0:00:07]} Ref8 {[%emt 0:00:02]} 41. gxf8=Q
{[%emt 0:00:07]} Rxf8 {[%emt 0:00:02]} 42. Bc2+ {[%emt 0:00:07]} Kf3 {[%emt 0:
00:07]} 43. Ng1+ {[%emt 0:00:04]} Kg2 {[%emt 0:00:04]} 44. Ne2 {[%emt 0:00:04]}
Rd8+ {[%emt 0:00:06]} 45. Ke1 {[%emt 0:00:10]} Rc8 {[%emt 0:00:03]} 46. Nd4 {
[%emt 0:00:05]} e5 {[%emt 0:00:04]} 47. Ne2 {[%emt 0:00:24]} Rxc2 {[%emt 0:00:
43] Game drawn by agreement} 1/2-1/2

[Event "Fast Chess"]
[Site "ChessKid.com"]
[Date "2020.03.23"]
[Round "2"]
[White "Zerza, Julia"]
[Black "Zerza, Michael"]
[Result "0-1"]
[ECO "D00"]
[WhiteElo "782"]
[BlackElo "914"]
[PlyCount "52"]
[EventDate "2020.??.??"]
[TimeControl "600"]
[WhiteClock "0:06:10"]
[BlackClock "0:05:59"]

1. d4 {[%emt 0:00:00]} d5 {[%emt 0:00:02]} 2. e3 {[%emt 0:00:04]} Bg4 {[%emt 0:
00:07]} 3. Be2 {[%emt 0:00:04]} Bf5 {[%emt 0:00:05]} 4. Nf3 {[%emt 0:00:06]} e6
{[%emt 0:00:03]} 5. O-O {[%emt 0:00:07]} Bb4 {[%emt 0:00:03]} 6. Re1 {[%emt 0:
00:09]} Bxe1 {[%emt 0:00:06]} 7. Nxe1 {[%emt 0:00:03]} Nf6 {[%emt 0:00:15]} 8.
Nd3 {[%emt 0:00:13]} Ne4 {[%emt 0:00:06]} 9. f3 {[%emt 0:00:07]} Nc3 {[%emt 0:
00:04]} 10. Bd2 {[%emt 0:00:09]} Nxd1 {[%emt 0:00:08]} 11. Bxd1 {[%emt 0:00:05]
} Bxd3 {[%emt 0:00:07]} 12. cxd3 {[%emt 0:00:05]} Nc6 {[%emt 0:00:07]} 13. e4 {
[%emt 0:00:01]} f5 {[%emt 0:00:12]} 14. exd5 {[%emt 0:00:02]} exd5 {[%emt 0:00:
09]} 15. Ba4 {[%emt 0:00:02]} b5 {[%emt 0:00:13]} 16. Bb3 {[%emt 0:00:03]} Nxd4
{[%emt 0:00:07]} 17. Nc3 {[%emt 0:00:14]} O-O {[%emt 0:00:19]} 18. Nxd5 {
[%emt 0:00:14]} c6 {[%emt 0:00:07]} 19. Nf4+ {[%emt 0:00:07]} Kh8 {[%emt 0:00:
19]} 20. Bc3 {[%emt 0:00:10]} Ne6 {[%emt 0:00:13]} 21. Nxe6 {[%emt 0:00:21]}
Qe8 {[%emt 0:00:19]} 22. Nxf8 {[%emt 0:00:10]} Qxf8 {[%emt 0:00:08]} 23. Re1 {
[%emt 0:00:25]} Re8 {[%emt 0:00:07]} 24. Rxe8 {[%emt 0:00:17]} Qxe8 {[%emt 0:
00:06]} 25. Bd4 {[%emt 0:00:31]} a6 {[%emt 0:00:15]} 26. a4 {[%emt 0:00:12]}
Qe1# {[%emt 0:00:03] OpenWorkingLeopard won by checkmate} 0-1